bitfinex-derivatives/quotes_BTCF0:USTF0_20240929
["timestamp","ask_amount","ask_price","bid_price","bid_amount"]
[1727632281124,0.23504277,65876.0,65875.0,0.16882762]
[1727632281317,0.23278676,65876.0,65875.0,0.16882762]
[1727632283124,0.22278676,65876.0,65875.0,0.16882762]
[1727632285723,0.22278676,65876.0,65875.0,0.50982617]
[1727632285724,0.075881,65876.0,65875.0,0.50982617]
[1727632286925,0.105881,65876.0,65875.0,0.50982617]
[1727632287127,0.075881,65876.0,65875.0,0.50982617]
[1727632288625,0.075881,65876.0,65875.0,0.61612822]
[1727632288822,0.105881,65876.0,65875.0,0.5261816]
[1727632289028,0.105881,65876.0,65875.0,0.28791289]
[1727632289835,0.125881,65876.0,65875.0,0.21203189]
[1727632290136,0.125881,65876.0,65875.0,0.46556215]
[1727632290331,0.125881,65876.0,65875.0,0.21203189]
[1727632290634,0.125881,65876.0,65875.0,0.34411769]
[1727632290927,0.05,65876.0,65875.0,0.34411769]
[1727632291722,0.125881,65876.0,65875.0,0.34411769]
[1727632292324,0.125881,65876.0,65875.0,0.45039592]
[1727632293736,0.125881,65876.0,65875.0,0.31831012]
[1727632294038,0.23129657,65876.0,65875.0,0.003]
[1727632294238,0.27374909,65876.0,65875.0,0.003]
[1727632300640,0.27356629,65876.0,65875.0,0.003]
[1727632300937,0.125881,65876.0,65875.0,0.2114387]
[1727632305640,0.125881,65876.0,65875.0,0.21146445]
[1727632307234,0.125881,65876.0,65875.0,0.21145223]
[1727632308945,0.125881,65876.0,65875.0,0.09809848]
[1727632315944,0.14851578,65876.0,65872.0,0.0035]
[1727632316243,0.22365767,65875.0,65874.0,0.075883]
[1727632317953,0.22365767,65875.0,65874.0,0.077883]
[1727632319348,0.24365767,65875.0,65874.0,0.077883]
[1727632320147,0.24143524,65875.0,65874.0,0.077883]
[1727632323953,0.02,65875.0,65874.0,0.42009837]
[1727632324853,0.095884,65875.0,65874.0,0.42009837]
[1727632327156,0.095884,65875.0,65874.0,0.34421537]
[1727632327555,0.095884,65875.0,65874.0,0.21179305]
[1727632330855,0.20030299,65875.0,65874.0,0.002]
[1727632331053,0.075885,65872.0,65871.0,0.04443302]
[1727632331253,0.2378492,65872.0,65871.0,0.05443302]
[1727632331652,0.38431936,65872.0,65871.0,0.05443302]
[1727632332155,0.38430184,65872.0,65871.0,0.05443302]
[1727632332858,0.23275516,65872.0,65871.0,0.05443302]
[1727632333353,0.23475516,65872.0,65871.0,0.05543302]
[1727632337161,0.23475516,65872.0,65871.0,0.011]
[1727632338165,0.23299406,65872.0,65871.0,0.011]
[1727632338959,0.088285,65872.0,65871.0,0.22111732]
[1727632341254,0.088285,65872.0,65871.0,0.21111732]
[1727632342058,0.088285,65872.0,65871.0,0.10420063]
[1727632342059,1.143725,65872.0,65871.0,0.10420063]
[1727632342371,1.143725,65872.0,65871.0,0.09585812]
[1727632342867,1.143725,65872.0,65871.0,0.09629639]
[1727632343055,1.143725,65872.0,65871.0,0.1721749]
[1727632343256,0.075886,65871.0,65870.0,0.07587851]
[1727632343457,0.176286,65871.0,65870.0,0.17138666]
[1727632343657,0.631726,65871.0,65870.0,0.09550815]
[1727632343964,0.631726,65871.0,65870.0,0.17135711]
[1727632344262,0.631726,65871.0,65870.0,0.07584896]
[1727632344465,0.632726,65871.0,65870.0,0.001]
[1727632345164,1.232726,65871.0,65870.0,0.001]
[1727632345956,1.32414967,65871.0,65870.0,0.001]
[1727632346465,1.5157963,65871.0,65870.0,0.00046161]
[1727632346672,1.37944524,65871.0,65870.0,0.00046161]
[1727632346853,1.5157963,65871.0,65870.0,0.00046161]
[1727632347255,1.37944524,65871.0,65870.0,0.00046161]
[1727632347761,1.37877443,65871.0,65870.0,0.00046161]
[1727632348265,1.51487608,65871.0,65870.0,0.00046161]
[1727632349158,1.37877443,65871.0,65870.0,0.00046161]
[1727632349969,1.51487608,65871.0,65870.0,0.00046161]
[1727632350475,1.37877443,65871.0,65870.0,0.00046161]
[1727632351060,2.10037443,65871.0,65870.0,0.00046161]
[1727632352474,2.10024043,65871.0,65870.0,0.00046161]
[1727632353769,2.10024043,65871.0,65866.0,0.0035]
[1727632353770,0.075891,65867.0,65866.0,0.0035]
[1727632353972,0.075891,65867.0,65859.0,0.0035]
[1727632353973,0.075896,65863.0,65862.0,0.0035]
[1727632354173,0.075897,65862.0,65861.0,0.07584896]
[1727632354365,0.175897,65862.0,65861.0,0.17133508]
[1727632354766,0.1,65862.0,65861.0,0.17138412]
[1727632355572,0.1,65862.0,65861.0,0.21718412]
[1727632355878,0.3618,65863.0,65862.0,0.075897]
[1727632356067,0.3618,65863.0,65862.0,0.32588312]
[1727632356468,0.447696,65863.0,65862.0,0.21588312]
[1727632356668,0.446696,65863.0,65862.0,0.21588312]
[1727632356882,0.446696,65863.0,65862.0,0.13998612]
[1727632357178,0.447696,65863.0,65862.0,0.13991955]
[1727632357367,0.448696,65863.0,65862.0,0.13991955]
[1727632357767,0.087896,65863.0,65862.0,0.13991955]
[1727632361072,0.087896,65863.0,65862.0,0.0445]
[1727632361981,0.087896,65863.0,65862.0,0.08994164]
[1727632362281,0.087896,65863.0,65862.0,0.0445]
[1727632366282,0.087896,65863.0,65862.0,0.10508449]
[1727632366683,0.087896,65863.0,65862.0,0.0445]
[1727632367271,0.087896,65863.0,65862.0,0.10508449]
[1727632368297,0.087896,65863.0,65862.0,0.0445]
[1727632368675,0.087896,65863.0,65862.0,0.10515168]
[1727632368879,0.087896,65863.0,65862.0,0.0445]
[1727632369075,0.075897,65862.0,65861.0,0.04175366]
[1727632369270,0.17617506,65862.0,65861.0,0.04175366]
[1727632369474,0.23140572,65862.0,65861.0,0.04175366]
[1727632370380,0.23240572,65862.0,65861.0,0.04175366]
[1727632370580,0.38490633,65862.0,65861.0,0.04175366]
[1727632371182,0.23340572,65862.0,65861.0,0.04175366]
[1727632371682,0.23224851,65862.0,65861.0,0.04175366]
[1727632374402,0.29614246,65862.0,65861.0,0.04175366]
[1727632374687,0.39905105,65862.0,65861.0,0.04175366]
[1727632376089,0.087897,65862.0,65861.0,0.25208909]
[1727632380586,0.087897,65862.0,65861.0,0.35840181]
[1727632381690,0.087897,65862.0,65861.0,0.49119242]
[1727632382195,0.087897,65862.0,65861.0,0.49119617]
[1727632382593,0.087897,65862.0,65861.0,0.35840181]
[1727632383500,0.087897,65862.0,65861.0,0.49124986]
[1727632384087,0.075901,65858.0,65857.0,0.12145411]
[1727632384287,0.17552236,65858.0,65857.0,0.12145411]
[1727632384596,0.23039153,65858.0,65857.0,0.12145411]
[1727632385297,0.23139153,65858.0,65857.0,0.12145411]
[1727632386296,0.23239153,65858.0,65857.0,0.12145411]
[1727632389503,0.075903,65857.0,65856.0,0.00030175]
[1727632389698,0.40713658,65857.0,65856.0,0.00030175]
[1727632390904,0.24139353,65857.0,65856.0,0.00030175]
[1727632391106,0.001,65857.0,65856.0,0.3443053]
[1727632391295,0.126903,65857.0,65856.0,0.3443053]
[1727632391608,0.126903,65857.0,65856.0,0.21147109]
[1727632393798,0.487703,65857.0,65856.0,0.21147109]
[1727632394207,0.487703,65857.0,65856.0,0.21130292]
[1727632398702,0.533003,65857.0,65856.0,0.21130292]
[1727632399208,0.533003,65857.0,65856.0,0.21122816]
[1727632399409,0.172203,65857.0,65856.0,0.21122816]
[1727632399600,0.533003,65857.0,65856.0,0.21122816]
[1727632400414,0.172203,65857.0,65856.0,0.21122816]
[1727632400911,0.533003,65857.0,65856.0,0.21122816]
[1727632402902,0.172203,65857.0,65856.0,0.21122816]
[1727632403103,0.533003,65857.0,65856.0,0.21122816]
[1727632403503,0.172203,65857.0,65856.0,0.21122816]
[1727632403704,0.172203,65857.0,65856.0,0.21124852]
[1727632403705,0.533003,65857.0,65856.0,0.21124852]
[1727632404408,0.172203,65857.0,65856.0,0.21124852]
[1727632404604,0.533003,65857.0,65856.0,0.21124852]
[1727632406215,0.74293548,65857.0,65856.0,0.00030175]
[1727632407812,0.38213548,65857.0,65856.0,0.00030175]
[1727632408201,0.74293548,65857.0,65856.0,0.00030175]
[1727632409104,0.38213548,65857.0,65856.0,0.00030175]
[1727632409505,0.74293548,65857.0,65856.0,0.00030175]
[1727632410812,0.38213548,65857.0,65856.0,0.00030175]
[1727632411118,0.74293548,65857.0,65856.0,0.00030175]
[1727632412215,0.62166992,65857.0,65856.0,0.00030175]
[1727632412401,0.62166992,65857.0,65856.0,0.00014328]
[1727632412402,0.67572475,65857.0,65856.0,0.00014328]
[1727632413212,0.533003,65857.0,65856.0,0.17252523]
[1727632413509,0.533003,65857.0,65856.0,0.17252532]
[1727632413916,0.534003,65857.0,65856.0,0.17252532]
[1727632414420,0.533003,65857.0,65856.0,0.17252532]
[1727632414618,0.534003,65857.0,65856.0,0.00014328]
[1727632414818,0.534003,65857.0,65856.0,0.07602015]
[1727632415714,0.534003,65857.0,65856.0,0.00014328]
[1727632416110,0.534003,65857.0,65856.0,0.07602015]
[1727632416518,0.534003,65857.0,65856.0,0.00014328]
[1727632417412,0.894803,65857.0,65856.0,0.00014328]
[1727632420026,1.950323,65857.0,65856.0,0.00014328]
[1727632421222,2.09031774,65857.0,65856.0,0.00014328]
[1727632421712,2.31989502,65857.0,65856.0,6.922e-05]
[1727632422719,2.15315495,65857.0,65856.0,6.922e-05]
[1727632424430,0.075911,65850.0,65849.0,0.00172991]
[1727632424722,0.62670574,65850.0,65849.0,0.00172991]
[1727632425328,0.76294178,65850.0,65849.0,0.00172991]
[1727632425628,0.76394178,65850.0,65849.0,0.00172991]
[1727632426123,0.57456801,65850.0,65849.0,0.00172991]
[1727632426521,0.57556801,65850.0,65849.0,0.00172991]
[1727632427428,0.488711,65850.0,65849.0,0.00172991]
[1727632427630,0.57501824,65850.0,65849.0,0.00172991]
[1727632427829,0.57502053,65850.0,65849.0,0.00172991]
[1727632428344,0.57502053,65850.0,65849.0,0.09882562]
[1727632428345,0.488711,65850.0,65849.0,0.09882562]
[1727632429527,0.4128,65850.0,65849.0,0.18981873]
[1727632429730,0.4553,65850.0,65849.0,0.09882562]
[1727632430029,0.4553,65850.0,65849.0,0.00172991]
[1727632430530,0.531211,65850.0,65849.0,0.00172991]
[1727632431917,0.892011,65850.0,65849.0,0.00172991]
[1727632432119,0.075914,65847.0,65843.0,0.09099311]
[1727632432317,0.3608,65844.0,65843.0,0.09099311]
[1727632432521,0.536718,65844.0,65843.0,0.09705495]
[1727632434225,0.536718,65844.0,65843.0,0.1728718]
[1727632434427,0.536718,65844.0,65843.0,0.09705495]
[1727632434733,0.536718,65844.0,65843.0,0.17286319]
[1727632435034,0.538718,65844.0,65843.0,0.17286319]
[1727632436125,0.538718,65844.0,65836.0,0.00030175]
[1727632436126,0.7458757,65844.0,65836.0,0.00030175]
[1727632436334,0.075926,65837.0,65836.0,0.00030175]
[1727632436524,0.12574756,65837.0,65836.0,0.00030175]
[1727632436932,0.11574756,65837.0,65836.0,0.00030175]
[1727632437330,0.11574144,65837.0,65836.0,0.00030175]
[1727632437529,0.11674144,65837.0,65836.0,0.00030175]
[1727632438328,0.11774144,65837.0,65836.0,0.00030175]
[1727632439127,0.04181544,65837.0,65836.0,0.18622875]
[1727632439325,0.002,65837.0,65836.0,0.18622875]
[1727632439527,0.3608,65838.0,65837.0,0.075926]
[1727632439734,0.2921,65838.0,65837.0,0.075926]
[1727632439929,0.2921,65838.0,65837.0,0.165926]
[1727632440838,0.2931,65838.0,65837.0,0.165926]
[1727632441043,0.2941,65838.0,65837.0,0.165926]
[1727632441341,0.33401077,65838.0,65837.0,0.165926]
[1727632442543,0.04191077,65838.0,65837.0,1.221606]
[1727632442745,0.002,65838.0,65837.0,1.221606]
[1727632443434,0.075919,65843.0,65841.0,0.075921]
[1727632443641,0.075919,65843.0,65842.0,0.25691709]
[1727632443939,0.075919,65843.0,65842.0,0.43283709]
[1727632444443,0.076919,65843.0,65842.0,0.43283709]
[1727632444940,0.077919,65843.0,65842.0,0.43283709]
[1727632445443,0.077919,65843.0,65842.0,0.43376267]
[1727632446336,0.077919,65843.0,65842.0,0.43476267]
[1727632448243,0.087919,65843.0,65842.0,0.33476267]
[1727632449642,0.087919,65843.0,65842.0,0.25884267]
[1727632449837,0.087919,65843.0,65842.0,0.14337335]
[1727632454849,0.087919,65843.0,65842.0,0.25337335]
[1727632455233,0.087919,65843.0,65842.0,0.36885972]
[1727632455433,0.087919,65843.0,65842.0,0.32435972]
[1727632455645,0.087919,65843.0,65842.0,0.21435972]
[1727632458336,0.087919,65843.0,65842.0,0.002]
[1727632458337,0.17480077,65843.0,65842.0,0.002]
[1727632459140,0.29590221,65843.0,65842.0,0.002]
[1727632459548,0.29562763,65843.0,65842.0,0.002]
[1727632459744,0.17452619,65843.0,65842.0,0.002]
[1727632460839,0.17352619,65843.0,65842.0,0.001]
[1727632461350,0.17452619,65843.0,65842.0,0.002]
[1727632462347,0.24920907,65843.0,65842.0,0.002]
[1727632462554,0.65653976,65843.0,65842.0,0.002]
[1727632463946,0.53532619,65843.0,65842.0,0.002]
[1727632466257,0.53532619,65843.0,65842.0,0.11801666]
[1727632466258,0.448719,65843.0,65842.0,0.11801666]
[1727632466456,0.448719,65843.0,65842.0,0.2153492]
[1727632467553,0.39553309,65843.0,65842.0,0.2153492]
[1727632467756,0.448719,65843.0,65842.0,0.2153492]
[1727632472652,0.448719,65843.0,65842.0,0.3253492]
[1727632474053,0.448719,65843.0,65842.0,0.2153492]
[1727632474253,0.448719,65843.0,65842.0,0.32505361]
[1727632481386,0.53556006,65843.0,65842.0,0.002]
[1727632487686,0.53534199,65843.0,65842.0,0.002]
[1727632488483,0.448719,65843.0,65842.0,0.32120246]
[1727632489979,0.3728,65843.0,65842.0,0.45570335]
[1727632490174,0.448719,65843.0,65842.0,0.21504619]
[1727632492179,0.448719,65843.0,65842.0,0.09158043]
[1727632493680,0.448719,65843.0,65837.0,0.11373064]
[1727632493879,0.448719,65843.0,65838.0,0.13326345]
[1727632494078,0.3728,65843.0,65842.0,0.07592]
[1727632494282,0.3728,65843.0,65842.0,0.30918345]
[1727632494584,0.38179079,65843.0,65842.0,0.30918345]
[1727632494779,0.01899079,65843.0,65842.0,0.30704917]
[1727632494989,0.3643,65850.0,65842.0,0.23112917]
[1727632495188,0.3708,65850.0,65843.0,0.13112917]
[1727632495382,0.3708,65850.0,65849.0,0.075912]
[1727632495578,0.3708,65850.0,65849.0,0.085912]
[1727632495783,0.3608,65850.0,65849.0,0.085912]
[1727632495989,0.436711,65850.0,65849.0,0.085912]
[1727632496191,0.446711,65850.0,65849.0,0.085912]
[1727632496389,0.59787425,65850.0,65849.0,0.03799431]
[1727632496695,0.23707425,65850.0,65849.0,0.1]
[1727632496891,0.22807425,65850.0,65849.0,0.1]
[1727632497281,0.22907425,65850.0,65849.0,0.1]
[1727632497883,0.22907425,65850.0,65849.0,0.175912]
[1727632498083,0.22807425,65850.0,65849.0,0.176912]
[1727632498478,0.22807425,65850.0,65849.0,0.05446624]
[1727632498479,0.3785459,65850.0,65849.0,0.05446624]
[1727632498685,0.3785459,65850.0,65849.0,0.15446624]
[1727632498895,0.3785459,65850.0,65846.0,0.19229581]
[1727632499089,0.075914,65847.0,65846.0,0.35820981]
[1727632499285,0.26260563,65847.0,65846.0,0.35820981]
[1727632499490,0.22707725,65847.0,65846.0,0.35820981]
[1727632499682,0.31998136,65847.0,65846.0,0.35820981]
[1727632499887,0.22707725,65847.0,65846.0,0.35820981]
[1727632500087,0.22707725,65847.0,65846.0,0.36020981]
[1727632500389,0.21221275,65847.0,65846.0,0.36020981]
[1727632500590,0.22707725,65847.0,65846.0,0.36020981]
[1727632501095,0.22707725,65847.0,65846.0,0.36120981]
[1727632501293,0.30598424,65847.0,65846.0,0.36120981]
[1727632501487,0.21219794,65847.0,65846.0,0.36120981]
[1727632501683,0.26906742,65847.0,65846.0,0.35920981]
[1727632501884,0.21219794,65847.0,65846.0,0.35920981]
[1727632502287,0.37202422,65847.0,65846.0,0.35920981]
[1727632502489,0.23574028,65847.0,65846.0,0.35920981]
[1727632503293,0.22574028,65847.0,65846.0,0.35920981]
[1727632503489,0.075914,65847.0,65846.0,0.35920981]
[1727632503896,0.075914,65847.0,65846.0,0.47186219]
[1727632504395,0.49595529,65851.0,65850.0,0.075911]
[1727632504592,0.49519529,65851.0,65850.0,0.185911]
[1727632504789,0.49519529,65851.0,65850.0,0.27688556]
[1727632506097,0.49519529,65851.0,65850.0,0.185911]
[1727632506393,0.49619529,65851.0,65850.0,0.075911]
[1727632507404,0.49619529,65851.0,65850.0,0.28024811]
[1727632511094,0.49619529,65851.0,65850.0,0.37122267]
[1727632511399,0.53929194,65851.0,65850.0,0.185911]
[1727632515403,0.49619529,65851.0,65850.0,0.185911]
[1727632516187,0.53946583,65851.0,65850.0,0.185911]
[1727632516393,0.49619529,65851.0,65850.0,0.185911]
[1727632517297,0.53947638,65851.0,65850.0,0.185911]
[1727632518499,0.07918891,65851.0,65850.0,0.39237433]
[1727632521510,0.07691,65851.0,65850.0,0.49846193]
[1727632522401,0.07691,65851.0,65850.0,0.62843091]
[1727632523391,0.07691,65851.0,65850.0,0.52234331]
[1727632524503,0.001,65851.0,65850.0,0.52234331]
[1727632524904,0.07691,65851.0,65850.0,0.52234331]
[1727632526706,0.12113639,65851.0,65850.0,0.185911]
[1727632527006,0.04522639,65851.0,65850.0,0.185911]
[1727632527408,0.04522639,65851.0,65850.0,0.641471]
[1727632527607,0.001,65851.0,65850.0,0.641471]
[1727632529009,0.001,65851.0,65850.0,0.185911]
[1727632529707,0.07691,65851.0,65850.0,0.185911]
[1727632532808,0.001,65851.0,65850.0,0.185911]
[1727632533511,0.001,65851.0,65850.0,0.52008222]
[1727632535013,0.001,65851.0,65850.0,0.52007542]
[1727632538511,0.03133036,65854.0,65853.0,0.075907]
[1727632538701,0.03133036,65854.0,65853.0,0.52007142]
[1727632539794,0.03433036,65854.0,65853.0,0.52007142]
[1727632539999,0.0035,65855.0,65854.0,0.075906]
[1727632540204,0.0035,65859.0,65858.0,0.075901]
[1727632540406,0.079397,65863.0,65862.0,0.075897]
[1727632540714,0.079397,65863.0,65862.0,0.37019883]
[1727632540715,0.075897,65863.0,65862.0,0.37019883]
[1727632541011,0.043,65864.0,65862.0,0.29430183]
[1727632541203,0.043,65864.0,65863.0,0.20429155]
[1727632541399,0.0035,65867.0,65866.0,0.075892]
[1727632541603,0.0035,65870.0,65866.0,0.075892]
[1727632541604,0.075888,65870.0,65867.0,0.07589]
[1727632541803,0.075888,65870.0,65868.0,0.20429155]
[1727632542112,0.075888,65870.0,65869.0,0.09344943]
[1727632542411,0.085888,65870.0,65869.0,0.09344943]
[1727632542599,0.075888,65870.0,65869.0,0.09344943]
[1727632543008,0.090888,65870.0,65869.0,0.09344943]
[1727632543510,0.100888,65870.0,65869.0,0.20353748]
[1727632543807,0.083888,65870.0,65869.0,0.20353748]
[1727632544015,0.101888,65870.0,65869.0,0.20453748]
[1727632544202,0.101888,65870.0,65869.0,0.20355661]
[1727632544402,0.083888,65870.0,65869.0,0.20355661]
[1727632544707,0.092888,65870.0,65869.0,0.20355661]
[1727632545909,0.017,65870.0,65869.0,0.27944561]
[1727632546710,0.017,65870.0,65869.0,0.38944561]
[1727632547905,0.017,65870.0,65869.0,0.3891289]
[1727632548605,0.11508882,65870.0,65869.0,0.11]
[1727632548903,0.11508882,65870.0,65869.0,0.185889]
[1727632549104,0.11508544,65870.0,65869.0,0.185889]
[1727632551703,0.06238793,65870.0,65869.0,0.185889]
[1727632552129,0.06238793,65870.0,65869.0,0.641329]
[1727632552306,0.06238793,65870.0,65869.0,1.241329]
[1727632554710,0.06238793,65870.0,65869.0,0.641329]
[1727632556618,0.0004,65872.0,65869.0,0.79163206]
[1727632556814,0.0004,65872.0,65871.0,0.436686]
[1727632557021,0.0004,65872.0,65871.0,0.53903784]
[1727632558218,0.0114,65872.0,65871.0,0.53903784]
[1727632558620,0.0035,65879.0,65878.0,0.075878]
[1727632558818,0.163577,65880.0,65879.0,0.075877]
[1727632559016,0.163577,65880.0,65879.0,0.13636273]
[1727632559217,0.163577,65880.0,65879.0,0.075877]
[1727632559517,0.163577,65880.0,65879.0,0.13636257]
[1727632559920,0.193577,65880.0,65879.0,0.13636257]
[1727632560116,0.193577,65880.0,65879.0,0.13636251]
[1727632560323,0.204577,65880.0,65879.0,0.076877]
[1727632560721,0.204577,65880.0,65879.0,0.13736564]
[1727632561125,0.204577,65880.0,65879.0,0.13836564]
[1727632563426,0.174577,65880.0,65879.0,0.13836564]
[1727632563919,0.0987,65880.0,65879.0,0.077877]
[1727632568014,0.0987,65880.0,65879.0,0.15348416]
[1727632568218,0.0987,65880.0,65879.0,0.22013545]
[1727632569425,0.0987,65880.0,65879.0,0.31086405]
[1727632570231,0.0987,65880.0,65879.0,0.22013545]
[1727632570617,0.0987,65880.0,65879.0,0.127877]
[1727632570618,0.19711963,65880.0,65879.0,0.127877]
[1727632570826,0.19711963,65880.0,65879.0,0.12782443]
[1727632570827,0.36326026,65880.0,65879.0,0.12782443]
[1727632571021,0.40880283,65880.0,65879.0,0.12782443]
[1727632571222,0.36550283,65880.0,65879.0,0.12782443]
[1727632571423,0.36537979,65880.0,65879.0,0.12782443]
[1727632571933,0.44125579,65880.0,65879.0,0.12782443]
[1727632576023,0.28994119,65880.0,65879.0,0.12782443]
[1727632576227,0.45645276,65880.0,65879.0,0.12782443]
[1727632577428,0.33994119,65880.0,65879.0,0.12782443]
[1727632577622,0.49129007,65880.0,65879.0,0.12782443]
[1727632577823,0.33994119,65880.0,65879.0,0.12782443]
[1727632578739,0.181276,65880.0,65879.0,0.33072639]
[1727632578929,0.08571821,65880.0,65879.0,0.33072639]
[1727632581128,0.08571821,65880.0,65879.0,0.33070491]
[1727632581334,0.08571821,65880.0,65879.0,0.56509093]
[1727632583330,0.14571821,65880.0,65879.0,0.56509093]
[1727632583741,0.14571821,65880.0,65879.0,0.45883099]
[1727632584133,0.08571821,65880.0,65879.0,0.45883099]
[1727632585537,0.08571821,65880.0,65879.0,0.56505342]
[1727632585840,0.13109855,65880.0,65879.0,0.12782443]
[1727632590527,0.1308513,65880.0,65879.0,0.12782443]
[1727632593736,0.08571821,65880.0,65879.0,0.3312735]
[1727632594042,0.11571821,65880.0,65879.0,0.3312735]
[1727632594242,0.00984221,65880.0,65879.0,0.3312735]
[1727632595335,0.00984221,65880.0,65879.0,0.33130397]
[1727632597153,0.00984221,65880.0,65879.0,0.45978495]
[1727632597439,0.00984221,65880.0,65879.0,0.5812255]
[1727632598129,0.00984221,65880.0,65879.0,0.45978495]
[1727632598333,0.0035,65884.0,65883.0,0.075873]
[1727632598537,0.075869,65886.0,65885.0,0.075868]
[1727632598734,0.075869,65886.0,65885.0,0.50782852]
[1727632599133,0.0456,65888.0,65885.0,0.50782852]
[1727632599336,0.0456,65888.0,65886.0,0.43822738]
[1727632599546,0.191467,65888.0,65887.0,0.20347954]
[1727632599750,0.187967,65888.0,65887.0,0.20347954]
[1727632600845,0.075868,65887.0,65886.0,0.075869]
[1727632601043,0.18486767,65887.0,65886.0,0.075869]
[1727632601847,0.17486767,65887.0,65886.0,0.075869]
[1727632602446,0.18286767,65887.0,65886.0,0.076869]
[1727632602659,0.19286767,65887.0,65886.0,0.077869]
[1727632602947,0.18286767,65887.0,65886.0,0.077869]
[1727632604141,0.24317157,65887.0,65886.0,0.077869]
[1727632604348,0.18286767,65887.0,65886.0,0.097869]
[1727632604539,0.37941334,65887.0,65886.0,0.097869]
[1727632604950,0.37937458,65887.0,65886.0,0.097869]
[1727632605549,0.37937458,65887.0,65886.0,0.077869]
[1727632606042,0.38937458,65887.0,65886.0,0.077869]
[1727632607954,0.252943,65887.0,65886.0,0.077869]
[1727632608256,0.19271482,65887.0,65886.0,0.077869]
[1727632608846,0.094268,65887.0,65886.0,0.28039905]
[1727632609657,0.084268,65887.0,65886.0,0.28039905]
[1727632610356,0.134268,65887.0,65886.0,0.28039905]
[1727632612862,0.084268,65887.0,65886.0,0.28039905]
[1727632613161,0.154268,65887.0,65886.0,0.28039905]
[1727632614770,0.084268,65887.0,65886.0,0.28039905]
[1727632615064,0.174268,65887.0,65886.0,0.28039905]
[1727632615857,0.27268733,65887.0,65886.0,0.077869]
[1727632616557,0.3328988,65887.0,65886.0,0.077869]
[1727632616759,0.46913073,65887.0,65886.0,0.077869]
[1727632616966,0.3328988,65887.0,65886.0,0.077869]
[1727632617362,0.46913073,65887.0,65886.0,0.077869]
[1727632617761,0.3328988,65887.0,65886.0,0.077869]
[1727632623262,0.46913073,65887.0,65886.0,0.077869]
[1727632623870,0.174268,65887.0,65886.0,0.28043666]
[1727632625470,0.174268,65887.0,65886.0,0.38670352]
[1727632626369,0.174268,65887.0,65886.0,0.51462207]
[1727632627270,0.174268,65887.0,65886.0,0.40835521]
[1727632630874,0.174268,65887.0,65886.0,0.28043666]
[1727632632368,0.174268,65887.0,65886.0,0.28102053]
[1727632635878,0.164268,65887.0,65886.0,0.28102053]
[1727632638888,0.32113467,65887.0,65886.0,0.077869]
[1727632639285,0.26159287,65887.0,65886.0,0.077869]
[1727632639882,0.62239287,65887.0,65886.0,0.077869]
[1727632640393,0.26159287,65887.0,65886.0,0.077869]
[1727632640586,0.62239287,65887.0,65886.0,0.077869]
[1727632640987,0.26159287,65887.0,65886.0,0.077869]
[1727632641293,0.62239287,65887.0,65886.0,0.077869]
[1727632641491,0.26159287,65887.0,65886.0,0.077869]
[1727632641794,0.62239287,65887.0,65886.0,0.077869]
[1727632641984,0.62237484,65887.0,65886.0,0.077869]
[1727632642393,0.62237453,65887.0,65886.0,0.077869]
[1727632643591,0.26157453,65887.0,65886.0,0.077869]
[1727632643892,0.62237453,65887.0,65886.0,0.077869]
[1727632645787,0.68190969,65887.0,65886.0,0.077869]
[1727632645984,0.525068,65887.0,65886.0,0.28160851]
[1727632646883,0.525068,65887.0,65886.0,0.28159535]
[1727632647293,0.164268,65887.0,65886.0,0.28159535]
[1727632647488,0.525068,65887.0,65886.0,0.28159535]
[1727632647888,0.525068,65887.0,65886.0,0.51649874]
[1727632648089,0.164268,65887.0,65886.0,0.51649874]
[1727632648486,0.525068,65887.0,65886.0,0.51649874]
[1727632649098,0.525068,65887.0,65886.0,0.44062974]
[1727632651888,0.525068,65887.0,65886.0,0.33421822]
[1727632654201,0.74324372,65887.0,65886.0,0.002]
[1727632654894,0.38244372,65887.0,65886.0,0.002]
[1727632655392,0.26120921,65887.0,65886.0,0.002]
[1727632655597,0.32029678,65887.0,65886.0,0.002]
[1727632655796,0.45670037,65887.0,65886.0,0.002]
[1727632656094,0.32029678,65887.0,65886.0,0.002]
[1727632656486,0.45657867,65887.0,65886.0,0.002]
[1727632658587,0.20912645,65887.0,65886.0,0.002]
[1727632658895,0.31510222,65887.0,65886.0,0.002]
[1727632660491,0.20912645,65887.0,65886.0,0.002]
[1727632661195,0.075871,65884.0,65883.0,0.06670547]
[1727632661394,0.176271,65884.0,65883.0,0.06320547]
[1727632662601,0.176271,65884.0,65883.0,0.06420547]
[1727632662905,0.184271,65884.0,65883.0,0.06420547]
[1727632663498,0.184271,65884.0,65883.0,0.001]
[1727632663894,0.193271,65884.0,65883.0,0.002]
[1727632665503,0.193271,65884.0,65874.0,0.01175314]
[1727632665504,0.1174,65884.0,65874.0,0.01175314]
[1727632665699,0.075877,65879.0,65876.0,0.07588]
[1727632665900,0.09,65879.0,65877.0,0.31528312]
[1727632666102,0.09,65879.0,65878.0,0.34559003]
[1727632666308,0.165877,65879.0,65878.0,0.34559003]
[1727632667514,0.165877,65879.0,65878.0,0.22219997]
[1727632668101,0.165877,65879.0,65878.0,0.10618591]
[1727632668302,0.175877,65879.0,65878.0,0.21751134]
[1727632668609,0.175877,65879.0,65878.0,0.21851134]
[1727632668610,0.185877,65879.0,65878.0,0.21851134]
[1727632669216,0.185877,65879.0,65878.0,0.07613816]
[1727632671118,0.185877,65879.0,65878.0,0.002]
[1727632672330,0.185877,65879.0,65878.0,0.077878]
[1727632673135,0.11,65879.0,65878.0,0.077878]
[1727632673836,0.185877,65879.0,65878.0,0.077878]
[1727632678337,0.11,65879.0,65878.0,0.077878]
[1727632684130,0.11,65879.0,65878.0,0.23227156]
[1727632684336,0.11,65879.0,65878.0,0.27811387]
[1727632684539,0.11,65879.0,65878.0,0.51082016]
[1727632684741,0.185877,65879.0,65878.0,0.32870797]
[1727632685043,1.284877,65879.0,65878.0,0.11565339]
[1727632685237,1.2497,65879.0,65877.0,0.07592301]
[1727632685444,0.892478,65878.0,65877.0,0.0606853]
[1727632685640,1.002478,65878.0,65877.0,0.0606853]
[1727632685844,1.602478,65878.0,65877.0,0.0606853]
[1727632686042,1.5266,65878.0,65875.0,0.0606853]
[1727632686242,0.0004,65876.0,65875.0,0.0606853]
[1727632686546,0.075882,65875.0,65874.0,0.0606853]